fUST/lending_fUST_20250305
["ID","MTS","AMOUNT","RATE_DAILY","PERIOD"]
[355431894,1741143044752,-500.0,0.00019639,2]
[355431895,1741143044763,-500.0,0.00019639,2]
[355431897,1741143044772,-500.0,0.00019639,2]
[355431898,1741143044782,-500.0,0.00019639,2]
[355431900,1741143044791,-500.0,0.00019639,2]
[355431902,1741143044801,-500.0,0.00019639,2]
[355431904,1741143044810,-500.0,0.00019639,2]
[355431905,1741143044819,-500.0,0.00019639,2]
[355431907,1741143044828,-500.0,0.00019639,2]
[355431909,1741143044838,-500.0,0.00019639,2]
[355431911,1741143044847,-500.0,0.00019639,2]
[355431912,1741143044857,-450.0,0.00019639,2]
[355431914,1741143044866,-16754.97172002,0.00019641,2]
[355431916,1741143044879,-2907.3500057,0.00019641,2]
[355431918,1741143044894,-4206.21136439,0.00019641,2]
[355431946,1741143046264,-306.55785098,0.00019641,2]
[355431947,1741143046275,-652.899999,0.00019641,2]
[355431948,1741143046371,-72.00905991,0.00019641,2]
[355431950,1741143046380,-500.11882598,0.00019673,2]
[355431951,1741143046390,-301.09511615,0.00019673,2]
[355431952,1741143046404,-227.22593534,0.00019673,2]
[355432063,1741143237439,1000.0,0.000165,3]
[355432067,1741143676869,810.14346936,0.00015489,2]
[355432068,1741143677256,810.14346936,0.0001569,2]
[355432069,1741143774472,14840.96206705,0.00016,2]
[355432070,1741143929405,-416.2669453,0.00016841,2]
[355432073,1741144171113,-810.14346936,0.0001613,2]
[355432074,1741144171135,-810.14346936,0.00016413,2]
[355432075,1741144171155,-810.14346936,0.00016533,2]
[355432076,1741144171176,-810.14346936,0.00016962,2]
[355432077,1741144171196,-810.14346936,0.00017006,2]
[355432078,1741144171217,-1215.6966519,0.00017011,2]
[355432079,1741144171238,-500.0,0.00017114,2]
[355432080,1741144171258,-450.55270797,0.0001719,2]
[355432081,1741144171278,-380.46214605,0.00017468,2]
[355432118,1741144232773,-314.008775,0.00017435,2]
[355432119,1741144232782,-429.68132331,0.00017468,2]
[355432120,1741144232791,-1790.9526508,0.00017724,2]
[355432121,1741144232802,-810.14346936,0.0001778,2]
[355432122,1741144232812,-810.14346936,0.00017881,2]
[355432123,1741144232821,-810.14346936,0.000181,2]
[355432124,1741144232830,-810.14346936,0.00018426,2]
[355432125,1741144232840,-1000.0,0.00018465,2]
[355432126,1741144232850,-300.0,0.00018475,2]
[355432127,1741144232859,-19187.99174014,0.00018476,2]
[355432128,1741144232871,-5712.00825986,0.00018476,2]
[355432129,1741144232881,-932.19728227,0.0001866,2]
[355432130,1741144232891,-810.14346936,0.0001876,2]
[355432131,1741144232900,-1494.43972623,0.000189,2]
[355432132,1741144232910,-230.60265303,0.00019022,2]
[355432133,1741144232942,-269.39734697,0.00019022,2]
[355432134,1741144232951,-500.0,0.00019022,2]
[355432135,1741144232961,-500.0,0.00019022,2]
[355432136,1741144232970,-3.92303371,0.00019022,2]
[355432151,1741144238290,-496.07696629,0.00019022,2]
[355432152,1741144238299,-117.21730924,0.00019022,2]
[355432153,1741144238367,-382.78269076,0.00019022,2]
[355432154,1741144238377,-500.0,0.00019022,2]
[355432155,1741144238388,-500.0,0.00019022,2]
[355432156,1741144238397,-500.0,0.00019022,2]
[355432157,1741144238406,-500.0,0.00019022,2]
[355432158,1741144238415,-500.0,0.00019022,2]
[355432159,1741144238426,-500.0,0.00019022,2]
[355432160,1741144238435,-500.0,0.00019022,2]
[355432161,1741144238445,-500.0,0.00019022,2]
[355432162,1741144238454,-500.0,0.00019022,2]
[355432163,1741144238464,-500.0,0.00019022,2]
[355432164,1741144238474,-521.09555058,0.00019022,2]
[355432165,1741144238484,-810.14346936,0.00019078,2]
[355432166,1741144238494,-810.14346941,0.00019418,2]
[355432167,1741144238504,-1000.0,0.00019625,2]
[355432168,1741144238513,-1000.0,0.0002,2]
[355432169,1741144238523,-509.24351261,0.0002,30]
[355432170,1741144238534,-4250.2505069,0.0002,30]
[355432177,1741144240533,-18140.50598049,0.0002,30]
[355432179,1741144240542,-175.14583848,0.00020007,5]
[355432180,1741144240551,-420.0,0.00020148,2]
[355432182,1741144240562,-1234.31841701,0.0002061,2]
[355432183,1741144240571,-1000.0,0.0002061,2]
[355432184,1741144240581,-175.14583848,0.00020626,5]
[355432185,1741144240590,-3690.30525137,0.00021,5]
[355432186,1741144240599,-6732.65074967,0.00021,2]
[355432187,1741144240608,-2649.03989563,0.000212,30]
[355432188,1741144240617,-151.0,0.000212,2]
[355432189,1741144240627,-1080.0,0.00021204,2]
[355432190,1741144240636,-174.3848914,0.00021264,5]
[355432191,1741144240646,-3826.36458937,0.00021269,2]
[355432192,1741144240658,-1977.6301833,0.00021269,2]
[355432193,1741144240681,-3690.41618191,0.00021269,2]
[355432194,1741144240691,-186.795984,0.0002149,2]
[355432195,1741144240701,-161.05804765,0.00021917,2]
[355432196,1741144240710,-150.0,0.00021917,2]
[355432197,1741144240719,-587.0,0.00021973,2]
[355432198,1741144240729,-1000.000001,0.00022,2]
[355432199,1741144240738,-186.795984,0.00022063,2]
[355432200,1741144240747,-161.05804765,0.00022191,2]
[355432201,1741144240756,-205.55,0.00022368,7]
[355432202,1741144240765,-186.795984,0.00022636,2]
[355432203,1741144240775,-693.30830526,0.000228,3]
[355432204,1741144240785,-547.43008649,0.000228,2]
[355432205,1741144240795,-521.87333551,0.000228,2]
[355432206,1741144240806,-628.44,0.00022807,3]
[355432207,1741144240816,-719.24255903,0.00022817,2]
[355432208,1741144240825,-209.48,0.0002289,3]
[355432209,1741144240834,-174.76,0.000229,7]
[355432210,1741144240843,-186.795984,0.00023209,2]
[355432211,1741144240854,-297.82435109,0.0002326,2]
[355432218,1741144243574,-159.55367887,0.00020609,2]
[355432219,1741144243584,-151.17862449,0.00020609,2]
[355432220,1741144243594,-634.37293118,0.0002326,2]
[355432221,1741144243603,-640.99144274,0.00023271,2]
[355432222,1741144243613,-150.0,0.00023287,2]
[355432223,1741144243622,-467.2592063,0.00023776,2]
[355432224,1741144243631,-1494.43972623,0.000239,2]
[355432225,1741144243641,-415.97683756,0.00023943,2]
[355432244,1741144246411,-750.42316244,0.00023943,2]
[355432245,1741144246420,-823.0,0.00023964,2]
[355432246,1741144246430,-500.0,0.00023973,2]
[355432247,1741144246439,-500.0,0.00023973,2]
[355432248,1741144246449,-506.10797738,0.00023973,2]
[355432249,1741144246458,-500.0,0.00023973,2]
[355432250,1741144246467,-500.0,0.00023973,2]
[355432251,1741144246476,-160.10961546,0.00023973,2]
[355432252,1741144246486,-634.40525265,0.00023999,2]
[355432253,1741144246495,-500.0,0.00023999,2]
[355432254,1741144246505,-500.0,0.00023999,2]
[355432255,1741144246514,-93.58687078,0.00023999,2]
[355432256,1741144246526,-406.41312922,0.00023999,2]
[355432257,1741144246536,-500.0,0.00023999,2]
[355432258,1741144246545,-500.0,0.00023999,2]
[355432259,1741144246555,-500.0,0.00023999,2]
[355432260,1741144246563,-500.0,0.00023999,2]
[355432261,1741144246572,-500.0,0.00023999,2]
[355432262,1741144246580,-500.0,0.00023999,2]
[355432263,1741144246589,-438.93321873,0.00023999,2]
[355432264,1741144246597,-430.270758,0.00023999,2]
[355432265,1741144246605,-1664.21265244,0.00024,2]
[355432266,1741144246614,-9418.88735954,0.00024,2]
[355432267,1741144246625,-526.51830325,0.00024,2]
[355432307,1741145432680,-728.18683426,0.0001711,2]
[355432309,1741145432690,-185.00167656,0.0001802,2]
[355432311,1741145432700,-300.0,0.00018119,2]
[355432313,1741145432710,-978.90444942,0.0001812,2]
[355432315,1741145432720,-500.0,0.0001812,2]
[355432318,1741145432730,-500.0,0.0001812,2]
[355432320,1741145432740,-705.46175025,0.0001812,2]
[355432322,1741145432750,-521.09555058,0.0001812,2]
[355432323,1741145432759,-519.8680661,0.00019022,2]
[355432324,1741145432769,-500.0,0.00019022,2]
[355432326,1741145432779,-500.0,0.00019022,2]
[355432328,1741145432789,-500.0,0.00019022,2]
[355432329,1741145432799,-500.0,0.00019022,2]
[355432331,1741145432809,-500.0,0.00019022,2]
[355432332,1741145432820,-500.0,0.00019022,2]
[355432334,1741145432830,-420.0,0.00019767,2]
[355432335,1741145432848,-180.67,0.00019767,2]
[355432336,1741145432858,-24900.0,0.00020544,2]
[355432337,1741145432868,-8410.841914,0.0002061,2]
[355432338,1741145432877,-500.0,0.00020852,2]
[355432339,1741145432887,-587.0,0.00021566,2]
[355432340,1741145432897,-10000.0,0.00021853,2]
[355432341,1741145432907,-150.0,0.00021899,2]
[355432342,1741145432917,-346.27758015,0.00022,2]
[355432343,1741145432927,-2884.1507741,0.00022,2]
[355432344,1741145432937,-699.14796172,0.000227,2]
[355432345,1741145432947,-670.19802836,0.000228,3]
[355432346,1741145432957,-823.0,0.00023528,2]
[355432347,1741145432966,-241.39542127,0.00023999,2]
[355432348,1741145432977,-11536.96192091,0.00024,2]
[355432349,1741145432987,-150.0,0.00024,2]
[355432350,1741145432997,-937.45369258,0.00024,2]
[355432351,1741145433020,-1062.54630742,0.00024,2]
[355432352,1741145433030,-200.0,0.00024,2]
[355432353,1741145433039,-250.60897176,0.00024,2]
[355432354,1741145433048,-403.98067162,0.00024658,2]
[355432355,1741145433078,-294.07858305,0.00024658,2]
[355432356,1741145433088,-152.67141695,0.00024659,2]
[355432357,1741145433101,-847.32858305,0.00024659,2]
[355432358,1741145433113,-800.0,0.00024659,2]
[355432359,1741145433123,-864.0,0.00024659,2]
[355432360,1741145433134,-933.12,0.00024659,2]
[355432361,1741145433145,-1007.7696,0.00024659,2]
[355432362,1741145433162,-1088.391168,0.00024659,2]
[355432363,1741145433173,-1175.46246144,0.00024659,2]
[355432364,1741145433183,-1269.49945836,0.00024659,2]
[355432365,1741145433194,-1371.05941502,0.00024659,2]
[355432366,1741145433206,-1600.0,0.00024659,2]
[355432367,1741145433216,-815.62298166,0.00024659,2]
[355432368,1741145433226,-1152.0,0.00025668,2]
[355432369,1741145433236,-653.01756015,0.00025878,2]
[355432370,1741145433247,-573.31274,0.00026,7]
[355432371,1741145433256,-426.1019796,0.00026093,4]
[355432372,1741145433266,-156.86595294,0.000261,60]
[355432373,1741145433277,-314.008775,0.00026153,2]
[355432374,1741145433287,-160.0,0.00026517,2]
[355432375,1741145433298,-6119.22636737,0.00026535,2]
[355432376,1741145433308,-403.0,0.00026626,2]
[355432377,1741145433320,-699.1479617,0.00026644,2]
[355432378,1741145433330,-150.0,0.00026899,2]
[355432379,1741145433340,-156.139474,0.00027135,2]
[355432380,1741145433350,-889.02,0.00027266,3]
[355432381,1741145433360,-500.0,0.00027267,2]
[355432382,1741145433371,-500.0,0.00027267,2]
[355432383,1741145433381,-500.0,0.00027267,2]
[355432384,1741145433392,-500.0,0.00027267,2]
[355432385,1741145433402,-500.0,0.00027267,2]
[355432386,1741145433413,-545.39332188,0.00027267,2]
[355432387,1741145433423,-180.91982017,0.00027267,5]
[355432388,1741145433434,-2754.63379177,0.00027267,5]
[355432389,1741145433444,-19589.2382168,0.00027267,2]
[355432390,1741145433454,-11747.10589297,0.00027268,2]
[355432413,1741145440715,-457.5,0.00027268,2]
[355432414,1741145440776,-582.04603108,0.00027268,2]
[355432415,1741145440834,-26391.82450955,0.00027268,2]
[355432416,1741145440843,-500.0,0.00027273,2]
[355432417,1741145440853,-500.0,0.00027273,2]
[355432418,1741145440863,-508.31957293,0.00027273,2]
[355432419,1741145440872,-516.56811406,0.00027273,2]
[355432420,1741145440882,-418.00709248,0.00027273,2]
[355432421,1741145440891,-501.90804875,0.00027273,2]
[355432422,1741145440901,-501.33045503,0.00027273,2]
[355432423,1741145440910,-500.756229,0.00027273,2]
[355432424,1741145440920,-500.28072557,0.00027273,2]
[355432425,1741145440930,-500.26999278,0.00027273,2]
[355432426,1741145440940,-500.92093658,0.00027273,2]
[355432427,1741145440950,-500.0,0.00027273,2]
[355432428,1741145440961,-502.93456682,0.00027273,2]
[355432429,1741145440972,-501.05210601,0.00027273,2]
[355432430,1741145440981,-500.0,0.00027273,2]
[355432431,1741145440991,-271.42834974,0.00027273,2]
[355432432,1741145441000,-160.11763138,0.00027273,2]
[355432433,1741145441010,-501.39988045,0.00027273,2]
[355432434,1741145441019,-504.53388253,0.00027273,2]
[355432435,1741145441029,-354.91576822,0.00027273,2]
[355432436,1741145441039,-200.5342291,0.00027273,2]
[355432437,1741145441048,-160.47187064,0.00027273,2]
[355432438,1741145441058,-504.61493629,0.00027273,2]
[355432439,1741145441068,-500.0,0.00027273,2]
[355432440,1741145441078,-500.0,0.00027273,2]
[355432441,1741145441088,-210.50867395,0.00027273,2]
[355432442,1741145441097,-500.0,0.00027273,2]
[355432443,1741145441107,-501.72603078,0.00027273,2]
[355432444,1741145441116,-500.0,0.00027273,2]
[355432445,1741145441126,-500.0,0.00027273,2]
[355432446,1741145441135,-500.0,0.00027273,2]
[355432447,1741145441145,-624.54588585,0.00027273,2]
[355432448,1741145441155,-48655.42881912,0.00027277,2]
[355432485,1741145443631,-11762.97981665,0.00027277,2]
[355432488,1741145443643,-1482.104845,0.00027277,2]
[355432492,1741145443688,-1699.10296557,0.00027277,2]
[355432493,1741145443700,-315.929,0.00027277,2]
[355432504,1741145443789,-134.64140516,0.00027277,2]
[355432505,1741145443829,-376.86986144,0.00027277,2]
[355432543,1741145446641,-500.0,0.00027267,2]
[355432545,1741145446651,-103.82781888,0.00027277,2]
[355432551,1741145446699,-500.0,0.00027267,2]
[355432553,1741145446709,-788.26418683,0.00027277,2]
[355432555,1741145446721,-7240.34132159,0.00027277,2]
[355432653,1741146632066,-5326.22843468,0.00024877,2]
[355432654,1741146632076,-1697.57360364,0.00024977,2]
[355432655,1741146632087,-963.74208315,0.00025077,2]
[355432656,1741146632097,-786.04963785,0.00025177,2]
[355432992,1741146640121,-1037.56463739,0.00025177,2]
[355432995,1741146640130,-300.0,0.00025202,2]
[355432998,1741146640140,-24900.0,0.00025456,2]
[355433001,1741146640149,-500.0,0.00025552,2]
[355433004,1741146640159,-668.42736617,0.000259,4]
[355433007,1741146640168,-9268.9472598,0.00026048,2]
[355433010,1741146640178,-319.5764847,0.00026731,4]
[355433013,1741146640188,-1347.0,0.00027,2]
[355433016,1741146640197,-5000.0,0.00027,120]
[355433019,1741146640206,-524.36097131,0.00027078,2]
[355433022,1741146640215,-499.63670868,0.00027167,2]
[355433025,1741146640225,-1000.0,0.00027171,2]
[355433028,1741146640234,-500.0,0.00027175,2]
[355433031,1741146640243,-500.0,0.00027175,2]
[355433034,1741146640252,-500.0,0.00027175,2]
[355433037,1741146640262,-164.58487141,0.00027175,2]
[355433040,1741146640271,-153271.36035,0.00027176,2]
[355433043,1741146640281,-467.26,0.00027177,3]
[355433046,1741146640290,-233.63,0.00027177,3]
[355433049,1741146640299,-700.93,0.00027177,3]
[355433052,1741146640309,-13022.8779823,0.00027177,2]
[355433055,1741146640319,-13877.31689588,0.00027177,5]
[355433057,1741146640328,-52091.5119291,0.00027177,2]
[355433059,1741146640337,-500.0,0.00027186,2]
[355433061,1741146640346,-500.0,0.00027186,2]
[355433063,1741146640355,-164.77519557,0.00027186,2]
[355433065,1741146640365,-500.0,0.00027186,2]
[355433067,1741146640374,-500.0,0.00027186,2]
[355433069,1741146640383,-365.10142181,0.00027186,2]
[355433071,1741146640392,-500.0,0.00027186,2]
[355433073,1741146640402,-500.0,0.00027186,2]
[355433075,1741146640411,-180.91982017,0.00027187,5]
[355433077,1741146640420,-58054.13155639,0.00027187,2]
[355433739,1741146748777,-300.0,0.00027187,5]
[355433740,1741147339102,-296.54177114,0.0001812,2]
[355433741,1741147400879,-296.54177114,0.0001812,2]
[355433742,1741147463181,-296.54177114,0.0001812,2]
[355433753,1741147832075,-823.17975424,0.0001812,2]
[355433754,1741147832085,-2529.93566,0.0001812,2]
[355433755,1741147832095,-500.0,0.00019022,2]
[355433756,1741147832104,-500.0,0.00019022,2]
[355433757,1741147832113,-2000.0,0.0002,2]
[355433758,1741147832123,-1194.73177913,0.00024987,2]
[355433759,1741147832132,-1215.74285016,0.00025087,2]
[355433760,1741147832142,-365.5749891,0.00025921,2]
[355433761,1741147832151,-160.0,0.00026177,2]
[355433762,1741147832161,-239.6823635,0.00026731,4]
[355433763,1741147832171,-2500.0,0.00027,120]
[355433764,1741147832181,-399.70936696,0.00027013,2]
[355433765,1741147832190,-458.81584987,0.00027013,2]
[355433766,1741147832200,-351.0,0.0002703,3]
[355433767,1741147832209,-386.91195576,0.0002703,3]
[355433768,1741147832219,-336.28052428,0.0002703,3]
[355433769,1741147832228,-1000.0,0.00027071,2]
[355433770,1741147832239,-500.0,0.00027073,2]
[355433771,1741147832250,-233.63,0.00027077,3]
[355433772,1741147832261,-700.89,0.00027077,3]
[355433773,1741147832271,-184.9538746,0.00027086,2]
[355433774,1741147832282,-10226.13926353,0.00027087,2]
[355433775,1741147832298,-24487.50538502,0.00027087,2]
[355433807,1741147840227,-187286.35535145,0.00027087,2]
[355433808,1741147840237,-160.0,0.00027113,2]
[355433809,1741147840246,-500.0,0.00027177,5]
[355433810,1741147840256,-250.0,0.00027187,2]
[355433811,1741147840266,-102.0,0.00027187,5]
[355433812,1741147840276,-250.0,0.00027187,5]
[355433813,1741147840287,-155.34564335,0.00027187,2]
[355433814,1741147840299,-750.0,0.00027277,2]
[355433815,1741147840309,-509.23668283,0.00027373,2]
[355433816,1741147840319,-500.0,0.00027373,2]
[355433817,1741147840328,-500.0,0.00027373,2]
[355433819,1741147840338,-276.4733548,0.00027373,2]
[355433821,1741147840348,-501.19797506,0.00027373,2]
[355433823,1741147840357,-501.32226503,0.00027373,2]
[355433825,1741147840367,-500.0,0.00027373,2]
[355433827,1741147840377,-502.19079139,0.00027373,2]
[355433829,1741147840386,-500.0,0.00027373,2]
[355433830,1741147840395,-500.91139444,0.00027373,2]
[355433831,1741147840406,-500.0,0.00027373,2]
[355433832,1741147840415,-500.0,0.00027373,2]
[355433833,1741147840425,-500.0,0.00027373,2]
[355433834,1741147840435,-421.93658575,0.00027373,2]
[355433835,1741147840446,-370.97033653,0.00027373,2]
[355433836,1741147840457,-208.047163,0.00027396,2]
[355433837,1741147840468,-500.0,0.00027396,2]
[355433838,1741147840479,-500.0,0.00027396,2]
[355433839,1741147840489,-165.3426369,0.00027396,2]
[355433840,1741147840499,-305.57099527,0.00027396,2]
[355433841,1741147840509,-500.0,0.00027396,2]
[355433842,1741147840518,-500.0,0.00027396,2]
[355433843,1741147840528,-769.58509173,0.00027397,2]
[355433844,1741147840537,-769.58509173,0.00027397,2]
[355433845,1741147840546,-769.58509173,0.00027397,2]
[355433846,1741147840556,-769.58509173,0.00027397,2]
[355433847,1741147840565,-769.58509173,0.00027397,2]
[355433848,1741147840575,-769.58509173,0.00027397,2]
[355433849,1741147840584,-769.58509173,0.00027397,2]
[355433850,1741147840594,-769.58509173,0.00027397,2]
[355433851,1741147840604,-769.58509173,0.00027397,2]
[355433852,1741147840614,-769.58509173,0.00027397,2]
[355433853,1741147840624,-769.58509173,0.00027397,2]
[355433854,1741147840634,-769.58509173,0.00027397,2]
[355433855,1741147840644,-769.58509173,0.00027397,2]
[355433856,1741147840653,-769.58509173,0.00027397,2]
[355433857,1741147840663,-769.58509173,0.00027397,2]
[355433858,1741147840673,-769.58509173,0.00027397,2]
[355433859,1741147840682,-769.58509173,0.00027397,2]
[355433860,1741147840692,-769.58509173,0.00027397,2]
[355433861,1741147840702,-769.58509173,0.00027397,2]
[355433862,1741147840713,-769.58509173,0.00027397,2]
[355433863,1741147840725,-769.58509173,0.00027397,2]
[355433864,1741147840735,-769.58509173,0.00027397,2]
[355433865,1741147840744,-769.58509173,0.00027397,2]
[355433866,1741147840753,-769.58509173,0.00027397,2]
[355433867,1741147840763,-769.58509173,0.00027397,2]
[355433868,1741147840773,-769.58509173,0.00027397,2]
[355433869,1741147840783,-769.58509173,0.00027397,2]
[355433870,1741147840792,-769.58509173,0.00027397,2]
[355433871,1741147840801,-769.58509173,0.00027397,2]
[355433872,1741147840811,-769.58509173,0.00027397,2]
[355433873,1741147840820,-769.58509173,0.00027397,2]
[355433874,1741147840830,-769.58509173,0.00027397,2]
[355433875,1741147840840,-769.58509173,0.00027397,2]
[355433876,1741147840849,-769.58509173,0.00027397,2]
[355433877,1741147840859,-769.58509173,0.00027397,2]
[355433878,1741147840869,-769.58509173,0.00027397,2]
[355433879,1741147840878,-769.58509173,0.00027397,2]
[355433880,1741147840888,-769.58509173,0.00027397,2]
[355433881,1741147840897,-769.58509173,0.00027397,2]
[355433882,1741147840907,-769.58509173,0.00027397,2]
[355433883,1741147840916,-769.58509173,0.00027397,2]
[355433884,1741147840926,-769.58509173,0.00027397,2]
[355433885,1741147840935,-769.58509173,0.00027397,2]
[355433886,1741147840945,-769.58509173,0.00027397,2]
[355433887,1741147840955,-769.58509173,0.00027397,2]
[355433888,1741147840968,-769.58509173,0.00027397,2]
[355433889,1741147840978,-769.58509173,0.00027397,2]
[355433890,1741147840988,-769.58509173,0.00027397,2]
[355433891,1741147840999,-769.58509173,0.00027397,2]
[355433892,1741147841008,-769.58509173,0.00027397,2]
[355433893,1741147841017,-769.58509173,0.00027397,2]
[355433894,1741147841027,-769.58509173,0.00027397,2]
[355433895,1741147841038,-769.58509173,0.00027397,2]
[355433896,1741147841048,-769.58509173,0.00027397,2]
[355433897,1741147841057,-769.58509173,0.00027397,2]
[355433898,1741147841067,-769.58509173,0.00027397,2]
[355433899,1741147841076,-769.58509173,0.00027397,2]
[355433900,1741147841086,-757.56032468,0.00027397,2]
[355433901,1741147841095,-757.56032468,0.00027397,2]
[355433902,1741147841104,-757.56032468,0.00027397,2]
[355433903,1741147841113,-757.56032468,0.00027397,2]
[355433904,1741147841123,-757.56032468,0.00027397,2]
[355433905,1741147841132,-757.56032468,0.00027397,2]
[355433906,1741147841142,-757.56032468,0.00027397,2]
[355433907,1741147841152,-757.56032468,0.00027397,2]
[355433908,1741147841161,-757.56032468,0.00027397,2]
[355433909,1741147841171,-757.56032468,0.00027397,2]
[355433910,1741147841180,-757.56032468,0.00027397,2]
[355433911,1741147841189,-757.56032468,0.00027397,2]
[355433912,1741147841199,-757.56032468,0.00027397,2]
[355433913,1741147841209,-757.56032468,0.00027397,2]
[355433914,1741147841218,-757.56032468,0.00027397,2]
[355433915,1741147841229,-757.56032468,0.00027397,2]
[355433916,1741147841239,-757.56032468,0.00027397,2]
[355433917,1741147841249,-757.56032468,0.00027397,2]
[355433918,1741147841258,-757.56032468,0.00027397,2]
[355433919,1741147841267,-757.56032468,0.00027397,2]
[355433920,1741147841277,-757.56032468,0.00027397,2]
[355433921,1741147841287,-757.56032468,0.00027397,2]
[355433922,1741147841296,-757.56032468,0.00027397,2]
[355433923,1741147841306,-757.56032468,0.00027397,2]
[355433924,1741147841315,-757.56032468,0.00027397,2]
[355433925,1741147841324,-757.56032468,0.00027397,2]
[355433926,1741147841334,-757.56032468,0.00027397,2]
[355433927,1741147841343,-757.56032468,0.00027397,2]
[355433928,1741147841353,-785.61811449,0.00027397,2]
[355433929,1741147841363,-785.61811449,0.00027397,2]
[355433930,1741147841372,-785.61811449,0.00027397,2]
[355433931,1741147841382,-785.61811449,0.00027397,2]
[355433932,1741147841391,-785.61811449,0.00027397,2]
[355433933,1741147841401,-266.350701,0.00027397,7]
[355433934,1741147841410,-153.23,0.000274,7]
[355433935,1741147841420,-3624.91968908,0.00027422,2]
[355433962,1741147845995,-2535.33996537,0.00027422,2]
[355433963,1741147846006,-250.0,0.000277,2]
[355433964,1741147846015,-653.00287773,0.000279,4]
[355433965,1741147846025,-848.32469347,0.0002799,2]
[355433969,1741148258583,10000.0,0.00016,10]
[355433970,1741148268313,10000.0,0.00016022,2]
[355433971,1741148282145,564.73478787,0.00016,10]
[355433972,1741148282171,9435.26521213,0.00016,10]
[355433973,1741148291327,10000.0,0.00016022,2]
[355433974,1741148304303,10000.0,0.00016,10]
[355433975,1741148314172,10000.0,0.00016,10]
[355433976,1741148326931,10000.0,0.00016022,2]
[355433977,1741148334978,10000.0,0.00016,10]
[355433978,1741148363676,6309.25,0.00016022,2]
[355433982,1741148953089,-300.0,0.00018,4]
[355433983,1741148953110,-810.49523344,0.000189,2]
[355433984,1741148953130,-810.49523344,0.000239,2]
[355433992,1741149032236,-337.1079264,0.00024711,2]
[355433993,1741149032245,-189.13646151,0.00024932,2]
[355433994,1741149032255,-504.0,0.00024932,2]
[355433995,1741149032265,-200.0,0.00024963,2]
[355433996,1741149032274,-269.33,0.00025,7]
[355433997,1741149032283,-504.0,0.00025,2]
[355433998,1741149032293,-200.769786,0.00025165,2]
[355433999,1741149032302,-900.0,0.00025469,3]
[355434000,1741149032311,-300.0,0.00025573,2]
[355434001,1741149032320,-15571.89313476,0.00025574,2]
[355434002,1741149032350,-8727.5548,0.00025574,2]
[355434051,1741149040294,-600.55206524,0.00025574,2]
[355434053,1741149040306,-504.0,0.0002589,2]
[355434054,1741149040317,-631.2361154,0.000259,4]
[355434055,1741149040332,-250.0,0.00025947,2]
[355434058,1741149040344,-160.0,0.00026549,2]
[355434060,1741149040355,-1401.70521894,0.00026566,2]
[355434064,1741149040379,-319.76749356,0.000269,2]
[355434066,1741149040394,-1000.0,0.00026971,2]
[355434068,1741149040405,-800.0,0.00026971,2]
[355434071,1741149040417,-864.0,0.00026971,2]
[355434072,1741149040428,-933.12,0.00026971,2]
[355434075,1741149040438,-1007.7696,0.00026971,2]
[355434077,1741149040449,-1088.391168,0.00026971,2]
[355434079,1741149040461,-1175.46246144,0.00026971,2]
[355434081,1741149040474,-1269.49945836,0.00026971,2]
[355434084,1741149040487,-1371.05941502,0.00026971,2]
[355434086,1741149040502,-1480.74416823,0.00026971,2]
[355434087,1741149040515,-1600.0,0.00026971,2]
[355434088,1741149040527,-503.7161591,0.00026973,2]
[355434090,1741149040538,-500.0,0.00026973,2]
[355434092,1741149040548,-189.58231997,0.00026973,2]
[355434094,1741149040561,-500.0,0.00026973,2]
[355434097,1741149040575,-500.0,0.00026973,2]
[355434099,1741149040586,-500.0,0.00026973,2]
[355434101,1741149040597,-500.0,0.00026973,2]
[355434104,1741149040611,-467.26,0.00026976,3]
[355434106,1741149040621,-39068.6339468,0.00026977,2]